Workbook

Sheet Свод
A3: № | B3: Наименование направления | C3: Выручка, всего | E3: Расходы, всего
C4: План | D4: Факт | E4: План | F4: Факт
A5: 1. | B5: Собственными силами | C5: =Данные!C9+Данные!K9+Данные!O9 -> 55546 | D5: =Данные!D9+Данные!L9+Данные!P9 -> 46591.42074 | E5: =Данные!C19+Данные!K19+Данные!O19 -> 247878.2613 | F5: =Данные!D19+Данные!L19+Данные!P19 -> 147895.02
A6: 2. | B6: Субподряд | C6: =Данные!G9+Данные!S9 -> 302849.85 | D6: =Данные!H9+Данные!T9 -> 269311.9832 | E6: =Данные!G19+Данные!S19 -> 531039.4614 | F6: =Данные!H19+Данные!T19 -> 426224.3882
C10: =SumiIFFormat(Данные!C9:F9,Свод!C5) -> 24830
A12: № | B12: Наименование направления | C12: Выручка, всего | E12: Расходы, всего
C13: План | D13: Факт | E13: План | F13: Факт
A14: 1. | B14: Собственными силами | C14: =SumiIFFormat(Данные!$C$9:$V$32,Свод!C14) -> 55546 | D14: =SumiIFFormat(Данные!$C$9:$V$32,Свод!D14) -> 46591.42074 | E14: =SumiIFFormat(Данные!$C$9:$V$32,Свод!E14) -> 247878.2613 | F14: =SumiIFFormat(Данные!$C$9:$V$32,Свод!F14) -> 147895.02
A15: 2. | B15: Субподряд | C15: =SumiIFFormat(Данные!$C$9:$V$32,Свод!C15) -> 302849.85 | D15: =SumiIFFormat(Данные!$C$9:$V$32,Свод!D15) -> 269311.9832 | E15: =SumiIFFormat(Данные!$C$9:$V$32,Свод!E15) -> 531039.4614 | F15: =SumiIFFormat(Данные!$C$9:$V$32,Свод!F15) -> 426224.3882

Sheet Данные
A2: №№ п/п | B2: Наименование статей | G2: РМУ | O2: ПБГПМ | S2: Работы по поиску Объекта, по капитальному ремонту и установке дополнительных секций и ВЛЭС ("Русские башни")
C4: Плановые, неотложные и аварийно-восстановительные работы на ВЛ 0,4-10 кВ в 2015-2016 г. для нужд ОАО "МКЭР" в филиалах ОАО "МОЭСК" | G4: Плановые, неотложные и аварийно-восстановительные работы на КЛ 0,4-35 кВ в 2015-2016 г. для нужд ОАО "МКЭР" в филиалах ОАО "МОЭСК" (ВЭС,ЮЭС,СЭС,ЗЭС, "Новая Москва", МКС) | K4: Расчистка трасс от ДКР и уборка угрожающих деревьев на ВЛ 0,4-220 кВ для нужд МКЭР | O4: Обследование, техническое обслуживание, наладка и настройка приборов и устройств безопасности, электрооборудования, гидрооборудования подъемных сооружений эксплуатируемых филиалами ПАО «МОЭСК»
C6: (ВЛ) | G6: (КЛ) | K6: (ДКР) | O6: (ПБГПМ) шифр 701 | S6: (Русские Башни) шифр 408
C7: план | D7: факт | E7: откл. | G7: план | H7: факт | I7: откл. | K7: план | L7: факт | M7: откл. | O7: план | P7: факт | Q7: откл. | S7: план | T7: факт | U7: откл.
E8: абс. | F8: отн.% | I8: абс. | J8: отн.% | M8: абс. | N8: отн.% | Q8: абс. | R8: отн.% | U8: абс. | V8: отн.%
A9: 1. | B9: Выручка всего, в том числе: | C9: =SUM(C10+C15+C18) -> 24830 | D9: =SUM(D10+D15+D18) -> 20437.8404 | E9: =D9-C9 -> -4392.159602 | F9: =E9/C9*100 -> -17.68892308 | G9: =SUM(G10+G15+G18) -> 198960 | H9: =SUM(H10+H15+H18) -> 219707.1597 | I9: =H9-G9 -> 20747.15967 | J9: =I9/G9*100 -> 10.42780442 | K9: =SUM(K10+K15+K18) -> 15839 | L9: =SUM(L10+L15+L18) -> 9592.287931 | M9: =L9-K9 -> -6246.712069 | N9: =M9/K9*100 -> -39.43880339 | O9: =SUM(O10+O15+O18) -> 14877 | P9: =SUM(P10+P15+P18) -> 16561.29242 | Q9: =P9-O9 -> 1684.292415 | R9: =Q9/O9*100 -> 11.32145201 | S9: =SUM(S10+S15+S18) -> 103889.85 | T9: =SUM(T10+T15+T18) -> 49604.82356 | U9: =T9-S9 -> -54285.02644 | V9: =U9/S9*100 -> -52.25248322
A10: 1.1. | B10: Доходы собственными силами: | C10: =[1]ВЛ!C12 -> 21474 | D10: =[1]ВЛ!T12 -> 14513.97979 | E10: =D10-C10 -> -6960.020212 | F10: =E10/C10*100 -> -32.41138219 | G10: =[1]КЛ!C13 -> 186930 | H10: =[1]КЛ!T13 -> 198799.5833 | I10: =H10-G10 -> 11869.58334 | J10: =I10/G10*100 -> 6.349747683 | K10: =[1]ДКР!C13 -> 13531 | L10: =[1]ДКР!T13 -> 7819.985161 | M10: =L10-K10 -> -5711.014839 | N10: =M10/K10*100 -> -42.20689409 | O10: =[1]обследование!C13 -> 14877 | P10: =[1]обследование!T13 -> 16561.29242 | Q10: =P10-O10 -> 1684.292415 | R10: =Q10/O10*100 -> 11.32145201 | S10: ='[1]шифр 408'!C14 -> 103889.85 | T10: ='[1]шифр 408'!T14 -> 49604.82356 | U10: =T10-S10 -> -54285.02644 | V10: =U10/S10*100 -> -52.25248322
A11: 1.1.1. | B11: Материалы | C11: =[1]ВЛ!C13 -> 21474 | D11: =[1]ВЛ!T13 -> 14513.97979 | E11: -6960.020212 | F11: -32.41138219 | G11: =[1]КЛ!C14 -> 184983 | H11: =[1]КЛ!T14 -> 196852.2404 | I11: 11869.24037 | J11: 6.416395222 | K11: =[1]ДКР!C14 -> 13531 | L11: =[1]ДКР!T14 -> 7819.985161 | M11: -5711.014839 | N11: 0 | O11: =[1]обследование!C14 -> 14877 | P11: =[1]обследование!T14 -> 16242.43242 | Q11: 1365.432415 | R11: 9.178143545 | S11: ='[1]шифр 408'!C15 -> 1329 | T11: ='[1]шифр 408'!T15 -> 1019.915978 | U11: -309.0840219 | V11: -23.25688652
A12: 1.1.2. | B12: НЧП | C12: =[1]ВЛ!C14 -> 10416 | D12: =[1]ВЛ!T14 -> 5219.81446 | E12: -5196.18554 | F12: -49.88657392 | G12: =[1]КЛ!C15 -> 57099 | H12: =[1]КЛ!T15 -> 59907.0254 | I12: 2808.0254 | J12: 4.917818876 | K12: =[1]ДКР!C15 -> 0 | L12: =[1]ДКР!T15 -> 0 | M12: 0 | O12: =[1]обследование!C15 -> 0 | P12: =[1]обследование!T15 -> 1760 | Q12: 1760 | S12: ='[1]шифр 408'!C16 -> 0 | T12: ='[1]шифр 408'!T16 -> 0 | U12: 0
A13: 1.1.3. | B13: Оборудование | C13: =[1]ВЛ!C15 -> 7702 | D13: =[1]ВЛ!T15 -> 3370.304718 | E13: -4331.695282 | F13: - | G13: =[1]КЛ!C16 -> 115854 | H13: =[1]КЛ!T16 -> 116037.6386 | I13: 183.6386444 | J13: - | K13: =[1]ДКР!C16 -> 11223 | L13: =[1]ДКР!T16 -> 6047.682391 | M13: -5175.317609 | N13: - | O13: =[1]обследование!C16 -> 14877 | P13: =[1]обследование!T16 -> 14482.43242 | Q13: -394.5675847 | R13: - | S13: ='[1]шифр 408'!C17 -> 1329 | T13: ='[1]шифр 408'!T17 -> 1018.015978 | U13: -310.9840219 | V13: -
A14: 1.1.4. | B14: Командировочные расходы | C14: =[1]ВЛ!C16 -> 0 | D14: =[1]ВЛ!T16 -> 0 | E14: 0 | G14: =[1]КЛ!C17 -> 0 | H14: =[1]КЛ!T17 -> 0 | I14: 0 | K14: =[1]ДКР!C17 -> 0 | L14: =[1]ДКР!T17 -> 0 | M14: 0 | O14: =[1]обследование!C17 -> 0 | P14: =[1]обследование!T17 -> 0 | Q14: 0 | R14: - | S14: ='[1]шифр 408'!C18 -> 0 | T14: ='[1]шифр 408'!T18 -> 1.9 | U14: 1.9 | V14: -
A15: 1.2. | B15: Доходы от субподряда, в т.ч.: | C15: =[1]ВЛ!C17 -> 3356 | D15: =[1]ВЛ!T17 -> 5923.86061 | E15: 2567.86061 | F15: - | G15: =[1]КЛ!C18 -> 12030 | H15: =[1]КЛ!T18 -> 20907.57633 | I15: 8877.57633 | J15: 73.79531446 | K15: =[1]ДКР!C18 -> 2308 | L15: =[1]ДКР!T18 -> 1772.30277 | M15: -535.69723 | N15: - | O15: =[1]обследование!C18 -> 0 | P15: =[1]обследование!T18 -> 0 | Q15: 0 | R15: - | S15: ='[1]шифр 408'!C19 -> 0 | T15: ='[1]шифр 408'!T19 -> 0 | U15: 0
A16: 1.2.1. | B16: Субподряд | C16: =[1]ВЛ!C18 -> 0 | D16: =[1]ВЛ!T18 -> 0 | E16: 0 | F16: - | G16: =[1]КЛ!C19 -> 1947 | H16: =[1]КЛ!T19 -> 1947.34297 | I16: 0.34297 | J16: 0.0176153056 | K16: =[1]ДКР!C19 -> 0 | L16: =[1]ДКР!T19 -> 0 | M16: 0 | N16: - | O16: =[1]обследование!C19 -> 0 | P16: =[1]обследование!T19 -> 298 | Q16: 298 | R16: - | S16: ='[1]шифр 408'!C20 -> 97677 | T16: ='[1]шифр 408'!T20 -> 45540.94231 | U16: -52136.05769 | V16: -53.37598175
A17: 1.2.2. | B17: Субподряд (непредвиденные затраты 1,5%) | C17: =[1]ВЛ!C19 -> 0 | D17: =[1]ВЛ!T19 -> 0 | E17: 0 | F17: - | G17: =[1]КЛ!C20 -> 1947 | H17: =[1]КЛ!T20 -> 1947.34297 | I17: 0.34297 | J17: - | K17: =[1]ДКР!C20 -> 0 | L17: =[1]ДКР!T20 -> 0 | M17: 0 | N17: - | O17: =[1]обследование!C20 -> 0 | P17: =[1]обследование!T20 -> 298 | Q17: 298 | R17: - | S17: ='[1]шифр 408'!C21 -> 97677 | T17: ='[1]шифр 408'!T21 -> 45540.94231 | U17: -52136.05769 | V17: -
A18: 1.3. | B18: Генподряд | C18: =[1]ВЛ!C20 -> 0 | D18: =[1]ВЛ!T20 -> 0 | E18: 0 | F18: - | G18: =[1]КЛ!C21 -> 0 | H18: =[1]КЛ!T21 -> 0 | I18: 0 | J18: - | K18: =[1]ДКР!C21 -> 0 | L18: =[1]ДКР!T21 -> 0 | M18: 0 | N18: - | O18: =[1]обследование!C21 -> 0 | P18: =[1]обследование!T21 -> 0 | Q18: 0 | R18: - | S18: ='[1]шифр 408'!C22 -> 0 | T18: ='[1]шифр 408'!T22 -> 0 | U18: 0
A19: 2. | B19: Расходы всего, в том числе: | C19: =C20+C28 -> 73014.77491 | D19: =D20+D28 -> 50882.50979 | E19: -22132.26512 | F19: -30.31203636 | G19: =G20+G28 -> 432160.2399 | H19: =H20+H28 -> 380359.0121 | I19: -51801.22775 | J19: -11.98657881 | K19: =K20+K28 -> 125631.2854 | L19: =L20+L28 -> 94954.51023 | M19: -30676.77512 | N19: -24.41810178 | O19: =O20+O28 -> 49232.20102 | P19: =P20+P28 -> 2058 | Q19: -47174.20102 | R19: -95.81980907 | S19: =S20+S28 -> 98879.22153 | T19: =T20+T28 -> 45865.37604 | U19: -53013.8455 | V19: -53.61474805
A20: 2.1. | B20: Прямые производственные расходы (условно-переменные) в том числе: | C20: =[1]ВЛ!C22 -> 73014.77491 | D20: =[1]ВЛ!T22 -> 50882.50979 | E20: -22132.26512 | F20: -30.31203636 | G20: =[1]КЛ!C23 -> 432160.2399 | H20: =[1]КЛ!T23 -> 380359.0121 | I20: -51801.22775 | J20: -11.98657881 | K20: =[1]ДКР!C23 -> 125631.2854 | L20: =[1]ДКР!T23 -> 94954.51023 | M20: -30676.77512 | N20: -24.41810178 | O20: =[1]обследование!C23 -> 49232.20102 | P20: =[1]обследование!T23 -> 2058 | Q20: -47174.20102 | R20: -95.81980907 | S20: ='[1]шифр 408'!C24 -> 98879.22153 | T20: ='[1]шифр 408'!T24 -> 45865.37604 | U20: -53013.8455 | V20: -53.61474805
A21: 2.1.1. | B21: Расходы на оплату труда производственного персонала | C21: =[1]ВЛ!C23 -> 28217.50324 | D21: =[1]ВЛ!T23 -> 25053.94741 | E21: =D21-C21 -> -3163.555827 | F21: -11.21132441 | G21: =[1]КЛ!C24 -> 162475.2143 | H21: =[1]КЛ!T24 -> 180079.2063 | I21: 17603.99198 | J21: 10.83487845 | K21: =[1]ДКР!C24 -> 33534.1874 | L21: =[1]ДКР!T24 -> 36615.72825 | M21: 3081.54085 | N21: 9.189251593 | O21: =[1]обследование!C24 -> 11284.27528 | P21: =[1]обследование!T24 -> 2058 | Q21: -9226.27528 | R21: -81.76223152 | S21: ='[1]шифр 408'!C25 -> 98148.54797 | T21: ='[1]шифр 408'!T25 -> 45659.88896 | U21: -52488.659 | V21: -53.47879321
A22: 2.1.2. | B22: Страховые взносы в фонды, обязательное страхование от НС и ПЗ | C22: =[1]ВЛ!C24 -> 10742.751 | D22: =[1]ВЛ!T24 -> 8517.256111 | E22: -2225.494889 | F22: -20.71624753 | G22: =[1]КЛ!C25 -> 64672.668 | H22: =[1]КЛ!T25 -> 64745.66908 | I22: 73.00108014 | J22: 0.1128777927 | K22: =[1]ДКР!C25 -> 22085.635 | L22: =[1]ДКР!T25 -> 19380.24914 | M22: -2705.38586 | N22: -12.24952717 | O22: =[1]обследование!C25 -> 9100.222 | P22: =[1]обследование!T25 -> 0 | Q22: -9100.222 | R22: -100 | S22: ='[1]шифр 408'!C26 -> 198.5526 | T22: ='[1]шифр 408'!T26 -> 78.23058806 | U22: -120.3220119 | V22: -60.59956502
A23: 2.1.3. | B23: Материалы | C23: =[1]ВЛ!C25 -> 2578.26024 | D23: =[1]ВЛ!T25 -> 2443.042901 | E23: -135.2173388 | F23: -5.244518637 | G23: =[1]КЛ!C26 -> 15521.44032 | H23: =[1]КЛ!T26 -> 18671.11719 | I23: 3149.676868 | J23: 20.2924265 | K23: =[1]ДКР!C26 -> 5300.5524 | L23: =[1]ДКР!T26 -> 5939.21905 | M23: 638.66665 | N23: 0 | O23: =[1]обследование!C26 -> 2184.05328 | P23: =[1]обследование!T26 -> 0 | Q23: -2184.05328 | R23: -100 | S23: ='[1]шифр 408'!C27 -> 51.58396548 | T23: ='[1]шифр 408'!T27 -> 23.66289386 | U23: -27.92107162 | V23: -54.12742383
A24: 2.1.4. | B24: Оборудование | C24: =[1]ВЛ!C26 -> 10416 | D24: =[1]ВЛ!T26 -> 5219.81446 | E24: -5196.18554 | F24: - | G24: =[1]КЛ!C27 -> 57099 | H24: =[1]КЛ!T27 -> 59907.0254 | I24: 2808.0254 | J24: - | K24: =[1]ДКР!C27 -> 0 | L24: =[1]ДКР!T27 -> 0 | M24: 0 | N24: - | O24: =[1]обследование!C27 -> 0 | P24: =[1]обследование!T27 -> 1760 | Q24: 1760 | R24: - | S24: ='[1]шифр 408'!C28 -> 0 | T24: ='[1]шифр 408'!T28 -> 0 | U24: 0 | V24: -
A25: 2.1.5. | B25: Командировочные расходы | C25: =[1]ВЛ!C27 -> 0 | D25: =[1]ВЛ!T27 -> 0 | E25: 0 | G25: =[1]КЛ!C28 -> 0 | H25: =[1]КЛ!T28 -> 0 | I25: 0 | K25: =[1]ДКР!C28 -> 0 | L25: =[1]ДКР!T28 -> 0 | M25: 0 | O25: =[1]обследование!C28 -> 0 | P25: =[1]обследование!T28 -> 0 | Q25: 0 | R25: - | S25: ='[1]шифр 408'!C29 -> 0 | T25: ='[1]шифр 408'!T29 -> 1.9 | U25: 1.9 | V25: -
A26: 2.1.6. | B26: Субподряд | C26: =[1]ВЛ!C28 -> 3356 | D26: =[1]ВЛ!T28 -> 5923.86061 | E26: 2567.86061 | F26: - | G26: =[1]КЛ!C29 -> 12030 | H26: =[1]КЛ!T29 -> 20907.57633 | I26: 8877.57633 | J26: 73.79531446 | K26: =[1]ДКР!C29 -> 2308 | L26: =[1]ДКР!T29 -> 2386.96857 | M26: 78.96857 | N26: - | O26: =[1]обследование!C29 -> 0 | P26: =[1]обследование!T29 -> 0 | Q26: 0 | R26: - | S26: ='[1]шифр 408'!C30 -> 0 | T26: ='[1]шифр 408'!T30 -> 11.9 | U26: 11.9
A27: 2.1.7 | B27: Прочие прямые расходы (транспортные расходы, страхование, согласования и др.) | C27: =[1]ВЛ!C29 -> 0 | D27: =[1]ВЛ!T29 -> 0 | E27: 0 | G27: =[1]КЛ!C30 -> 1947 | H27: =[1]КЛ!T30 -> 1947.34297 | I27: 0.34297 | J27: 0 | K27: =[1]ДКР!C30 -> 0 | L27: =[1]ДКР!T30 -> 0 | M27: 0 | O27: =[1]обследование!C30 -> 0 | P27: =[1]обследование!T30 -> 298 | Q27: 298 | R27: - | S27: ='[1]шифр 408'!C31 -> 97677 | T27: ='[1]шифр 408'!T31 -> 45540.94231 | U27: -52136.05769 | V27: 0
A28: 2.2 | B28: Накладные расходы (условно-постоянные) | C28: =[1]ВЛ!C41 -> 0 | D28: =[1]ВЛ!T41 -> 0 | E28: 0 | G28: =[1]КЛ!C42 -> 0 | H28: =[1]КЛ!T42 -> 0 | I28: 0 | K28: =[1]ДКР!C42 -> 0 | L28: =[1]ДКР!T42 -> 0 | M28: 0 | O28: =[1]обследование!C42 -> 0 | P28: =[1]обследование!T42 -> 0 | Q28: 0 | S28: ='[1]шифр 408'!C43 -> 0 | T28: ='[1]шифр 408'!T43 -> 0 | U28: 0
A29: 3. | B29: Маржинальная прибыль | C29: =C9-C20 -> -48184.77491 | D29: =D9-D20 -> -30444.6694 | E29: 17740.10551 | F29: -36.81682761 | G29: =G9-G20 -> -233200.2399 | H29: =H9-H20 -> -160651.8525 | I29: 72548.38742 | J29: -31.10991115 | K29: =K9-K20 -> -109792.2854 | L29: =L9-L20 -> -85362.2223 | M29: 24430.06305 | N29: -22.25116544 | O29: -34355.20102 | P29: 14503.29242 | Q29: 48858.49344 | R29: -142.2157111 | S29: =S9-S20 -> 5010.628467 | T29: ='[1]шифр 408'!T44 -> 3.2 | U29: -5007.428467 | V29: -99.93613576
A30: 4. | B30: Маржинальная рентабельность | C30: =C29/C9 -> -1.940586988 | D30: =D29/D9 -> -1.489622622 | E30: =D30-C30 -> 0.4509643662 | F30: - | G30: =G29/G9 -> -1.172096099 | H30: =H29/H9 -> -0.7312089997 | I30: =H30-G30 -> 0.4408870994 | J30: - | K30: =K29/K9 -> -6.931768757 | L30: =L29/L9 -> -8.899047121 | M30: =L30-K30 -> -1.967278364 | N30: - | O30: =O29/O9 -> -2.309282854 | P30: =P29/P9 -> 0.8757343359 | Q30: =P30-O30 -> 3.18501719 | R30: - | S30: =S29/S9 -> 0.04823020215 | T30: =T29/T9 -> 6.45098555e-05 | U30: =T30-S30 -> -0.04816569229 | V30: -
A31: 5. | B31: Прибыль от продаж | C31: =C9-C19 -> -48184.77491 | D31: =D9-D19 -> -30444.6694 | E31: 17740.10551 | F31: -36.81682761 | G31: =G9-G19 -> -233200.2399 | H31: =H9-H19 -> -160651.8525 | I31: =H31-G31 -> 72548.38742 | J31: =I31/G31*100 -> -31.10991115 | K31: =K9-K19 -> -109792.2854 | L31: =L9-L19 -> -85362.2223 | M31: =L31-K31 -> 24430.06305 | N31: =M31/K31*100 -> -22.25116544 | O31: =O9-O19 -> -34355.20102 | P31: =P9-P19 -> 14503.29242 | Q31: =P31-O31 -> 48858.49344 | R31: =Q31/O31*100 -> -142.2157111 | S31: =S9-S19 -> 5010.628467 | T31: =T9-T19 -> 3739.447521 | U31: =T31-S31 -> -1271.180945 | V31: =U31/S31*100 -> -25.36969072
A32: 6. | B32: Рентабельность продаж | C32: =C31/C9 -> -1.940586988 | D32: =D31/D9 -> -1.489622622 | E32: 0.4509643662 | F32: - | G32: =G31/G9 -> -1.172096099 | H32: =H31/H9 -> -0.7312089997 | I32: =H32-G32 -> 0.4408870994 | J32: - | K32: =K31/K9 -> -6.931768757 | L32: =L31/L9 -> -8.899047121 | M32: =L32-K32 -> -1.967278364 | N32: - | O32: =O31/O9 -> -2.309282854 | P32: =P31/P9 -> 0.8757343359 | Q32: =P32-O32 -> 3.18501719 | R32: - | S32: =S31/S9 -> 0.04823020215 | T32: =T31/T9 -> 0.07538475602 | U32: =T32-S32 -> 0.02715455387 | V32: -
